fUSD/lending_fUSD_20250620
["ID","MTS","AMOUNT","RATE_DAILY","PERIOD"]
[366779381,1750444236370,-490.0,0.00026377,4]
[366779382,1750444236380,-490.0,0.00026377,4]
[366779383,1750444236390,-490.0,0.00026377,4]
[366779384,1750444236400,-94.16542659,0.00026377,4]
[366779385,1750444236413,-419.02300968,0.00026377,4]
[366779386,1750444236423,-426.07469953,0.00026377,4]
[366779393,1750444237719,-490.0,0.00026376,4]
[366779394,1750444237730,-490.0,0.00026376,4]
[366779395,1750444237740,-490.0,0.00026376,2]
[366779396,1750444237750,-490.0,0.00026376,4]
[366779397,1750444237760,-169.19998,0.00026376,4]
[366779401,1750444239631,-283.41862135,0.00026376,4]
[366779402,1750444239644,-125.53139865,0.00026376,4]
[366779403,1750444239655,-365.92360133,0.00026376,4]
[366779404,1750444239667,-1861.71639867,0.00026376,4]
[366779405,1750444239678,-63.92530047,0.00026377,4]
[366779406,1750444239688,-204.84,0.00026377,4]
[366779407,1750444239698,-490.0,0.00026377,4]
[366779408,1750444239709,-386.61988565,0.00026377,4]
[366779409,1750444239795,-103.38011435,0.00026377,4]
[366779410,1750444239806,-490.0,0.00026377,4]
[366779411,1750444239816,-490.0,0.00026378,4]
[366779412,1750444239826,-490.0,0.00026378,4]
[366779413,1750444239836,-586.86772283,0.00026378,4]
[366779414,1750444239846,-565.44466401,0.00026378,4]
[366779415,1750444239856,-490.0,0.00026378,4]
[366779416,1750444239865,-490.0,0.00026378,4]
[366779417,1750444239879,-309.83031203,0.00026378,4]
[366779418,1750444239895,-490.0,0.00026378,4]
[366779419,1750444239905,-490.37647,0.0002639,2]
[366779420,1750444239917,-500.0,0.00026476,4]
[366779421,1750444239927,-1601.30282822,0.00026532,3]
[366779422,1750444239937,-1601.30282822,0.00026532,3]
[366779423,1750444239947,-1121.28444285,0.00026542,2]
[366779424,1750444239969,-516.9,0.00026542,2]
[366779437,1750444242719,-490.0,0.00026376,4]
[366779438,1750444242731,-6.69160802,0.00026377,4]
[366779439,1750444242828,-483.30839198,0.00026377,4]
[366779440,1750444242839,-923.93778265,0.00026542,2]
[366779449,1750444244183,-2437.8777745,0.00026542,2]
[366779451,1750444244194,-789.72701007,0.0002655,2]
[366779453,1750444244205,-1486.6057,0.00026552,2]
[366779455,1750444244215,-162.69437358,0.00026553,2]
[366779457,1750444244225,-329.02266338,0.00026554,2]
[366779459,1750444244236,-317.71278249,0.00026554,2]
[366779460,1750444244246,-151.0,0.00026624,2]
[366779461,1750444244256,-150.55,0.00026633,2]
[366779462,1750444244271,-150.55,0.00026633,2]
[366779463,1750444244281,-150.55,0.00026633,2]
[366779464,1750444244292,-150.55,0.00026633,2]
[366779465,1750444244302,-150.55,0.00026633,2]
[366779466,1750444244313,-150.55,0.00026633,2]
[366779467,1750444244324,-150.55,0.00026633,2]
[366779468,1750444244335,-150.55,0.00026633,2]
[366779469,1750444244346,-150.55,0.00026633,2]
[366779470,1750444244357,-22418.2395951,0.00026633,3]
[366779471,1750444244367,-4803.90848466,0.0002664,3]
[366779473,1750444244378,-1230.37938739,0.00026641,3]
[366779475,1750444244391,-6776.13475371,0.00026641,3]
[366779477,1750444244402,-3870.1152463,0.00026641,3]
[366779480,1750444244415,-2104.3332,0.00026641,3]
[366779521,1750444245707,-490.0,0.00026376,4]
[366779522,1750444245717,-1438.34797702,0.00026641,3]
[366779523,1750444245729,-4243.60799999,0.00026641,3]
[366779524,1750444245811,-490.0,0.00026376,4]
[366779525,1750444245822,-3290.482625,0.00026641,3]
[366779526,1750444245868,-8383.83073159,0.00026641,3]
[366779527,1750444245882,-500.0,0.00026642,2]
[366779528,1750444245893,-500.0,0.00026642,2]
[366779529,1750444245904,-500.0,0.00026642,2]
[366779530,1750444245914,-500.0,0.00026642,2]
[366779531,1750444245926,-78.6527662,0.00026642,2]
[366779532,1750444245939,-421.3472338,0.00026642,2]
[366779533,1750444245948,-500.0,0.00026642,2]
[366779534,1750444245959,-500.0,0.00026642,2]
[366779535,1750444245970,-500.0,0.00026642,2]
[366779536,1750444245981,-500.0,0.00026642,2]
[366779537,1750444245991,-500.0,0.00026642,2]
[366779538,1750444246002,-500.0,0.00026642,2]
[366779539,1750444246012,-150.36972246,0.00026642,2]
[366779540,1750444246022,-500.0,0.00026642,2]
[366779541,1750444246032,-407.85654011,0.00026642,2]
[366779542,1750444246042,-500.0,0.00026642,2]
[366779543,1750444246052,-374.85420125,0.00026642,2]
[366779544,1750444246062,-500.0,0.00026642,2]
[366779545,1750444246073,-500.0,0.00026642,2]
[366779546,1750444246083,-500.0,0.00026642,2]
[366779547,1750444246094,-168.15783102,0.00026642,2]
[366779548,1750444246104,-500.0,0.00026642,2]
[366779549,1750444246115,-500.0,0.00026642,2]
[366779550,1750444246125,-500.0,0.00026642,2]
[366779551,1750444246135,-500.0,0.00026642,2]
[366779552,1750444246146,-500.0,0.00026642,2]
[366779553,1750444246156,-500.0,0.00026642,2]
[366779554,1750444246166,-500.0,0.00026642,2]
[366779555,1750444246176,-500.0,0.00026642,2]
[366779556,1750444246186,-500.0,0.00026642,2]
[366779557,1750444246197,-500.0,0.00026642,2]
[366779558,1750444246207,-500.0,0.00026642,2]
[366779559,1750444246218,-500.0,0.00026642,2]
[366779560,1750444246228,-500.0,0.00026642,2]
[366779561,1750444246243,-500.0,0.00026642,2]
[366779562,1750444246253,-500.0,0.00026642,2]
[366779563,1750444246264,-500.0,0.00026642,2]
[366779564,1750444246273,-500.0,0.00026642,2]
[366779565,1750444246284,-500.0,0.00026642,2]
[366779566,1750444246389,-500.0,0.00026642,2]
[366779567,1750444246400,-500.0,0.00026642,2]
[366779568,1750444246410,-500.0,0.00026642,2]
[366779569,1750444246420,-500.0,0.00026642,2]
[366779570,1750444246430,-500.0,0.00026642,2]
[366779571,1750444246440,-500.0,0.00026642,2]
[366779572,1750444246450,-500.0,0.00026642,2]
[366779573,1750444246460,-500.0,0.00026642,2]
[366779574,1750444246469,-500.0,0.00026642,2]
[366779575,1750444246482,-500.0,0.00026642,2]
[366779576,1750444246491,-500.0,0.00026642,2]
[366779577,1750444246501,-500.0,0.00026642,2]
[366779578,1750444246511,-500.0,0.00026642,2]
[366779579,1750444246521,-500.0,0.00026642,2]
[366779580,1750444246530,-500.0,0.00026642,2]
[366779581,1750444246540,-339.50994884,0.00026642,2]
[366779582,1750444246550,-500.0,0.00026642,2]
[366779583,1750444246560,-500.0,0.00026642,2]
[366779584,1750444246569,-500.0,0.00026642,2]
[366779585,1750444246579,-500.0,0.00026642,2]
[366779586,1750444246589,-500.0,0.00026642,2]
[366779587,1750444246599,-500.0,0.00026642,2]
[366779588,1750444246609,-500.0,0.00026642,2]
[366779589,1750444246619,-500.0,0.00026642,2]
[366779590,1750444246629,-500.0,0.00026642,2]
[366779591,1750444246639,-500.0,0.00026642,2]
[366779592,1750444246649,-500.0,0.00026642,2]
[366779593,1750444246659,-500.0,0.00026642,2]
[366779594,1750444246669,-500.0,0.00026642,2]
[366779595,1750444246679,-500.0,0.00026642,2]
[366779596,1750444246690,-500.0,0.00026642,2]
[366779597,1750444246700,-400.0,0.00026642,2]
[366779598,1750444246710,-231.1183522,0.00026642,2]
[366779600,1750444321721,171.13,0.00022935,2]
[366779603,1750444417519,160.87,0.00013699,2]
[366779605,1750444565015,240.0,0.0002289,2]
[366779606,1750444565306,240.0,0.0002197,2]
[366779607,1750444565616,240.0,0.0002104,2]
[366779627,1750445431869,-203.0,0.00023532,2]
[366779628,1750445431879,-240.0,0.0002381,2]
[366779629,1750445431889,-151.0,0.0002381,2]
[366779630,1750445431899,-600.0,0.00024275,4]
[366779631,1750445431908,-240.0,0.0002474,2]
[366779632,1750445431918,-248.33057766,0.0002482,2]
[366779633,1750445431978,-951.66942234,0.0002482,2]
[366779634,1750445431989,-666.0,0.00024821,2]
[366779635,1750445431998,-1453.91027173,0.00024821,2]
[366779636,1750445432017,-1486.06032199,0.00024821,2]
[366779637,1750445432029,-564.47940628,0.00024821,2]
[366779638,1750445432040,-857.47,0.00024821,2]
[366779639,1750445432049,-203.0,0.00024991,4]
[366779640,1750445432059,-5544.95915942,0.00025088,12]
[366779641,1750445432071,-613.36118517,0.00025088,12]
[366779642,1750445432082,-1135.8514,0.00025088,12]
[366779643,1750445432094,-1767.76042618,0.00025088,12]
[366779644,1750445432104,-500.0,0.00025322,3]
[366779645,1750445432114,-200.0,0.00025378,7]
[366779646,1750445432124,-250.0,0.00025484,2]
[366779647,1750445432134,-271.64,0.00025556,120]
[366779648,1750445432143,-1000.0,0.00025622,2]
[366779649,1750445432153,-240.0,0.0002566,2]
[366779650,1750445432163,-1776.92545673,0.000259,14]
[366779651,1750445432173,-600.0,0.00026191,4]
[366779652,1750445432182,-741.2952,0.00026277,2]
[366779653,1750445432191,-2000.0,0.000263,2]
[366779654,1750445432200,-1776.92545672,0.00026348,14]
[366779655,1750445432209,-1000.0,0.00026375,2]
[366779656,1750445432218,-250.0,0.00026375,2]
[366779657,1750445432228,-241.88141098,0.00026376,4]
[366779658,1750445432237,-198.30536026,0.00026376,4]
[366779659,1750445432247,-490.0,0.00026376,4]
[366779661,1750445432257,-215.02055382,0.00026376,4]
[366779662,1750445432267,-490.0,0.00026376,4]
[366779664,1750445432277,-490.0,0.00026376,4]
[366779666,1750445432286,-490.0,0.00026376,4]
[366779669,1750445432295,-490.0,0.00026376,4]
[366779671,1750445432305,-490.0,0.00026376,4]
[366779674,1750445432316,-422.824148,0.00026376,4]
[366779678,1750445432328,-490.0,0.00026376,4]
[366779681,1750445432340,-490.0,0.00026376,4]
[366779684,1750445432350,-490.0,0.00026376,4]
[366779687,1750445432359,-490.0,0.00026376,4]
[366779690,1750445432371,-473.38969678,0.00026376,4]
[366779692,1750445432381,-490.0,0.00026376,4]
[366779694,1750445432392,-561.37057742,0.00026376,4]
[366779696,1750445432402,-647.8,0.00026376,2]
[366779698,1750445432412,-539.69,0.00026376,4]
[366779700,1750445432422,-490.0,0.00026376,4]
[366779702,1750445432432,-417.91647793,0.00026376,4]
[366779704,1750445432442,-490.0,0.00026376,4]
[366779707,1750445432452,-490.0,0.00026376,4]
[366779709,1750445432462,-490.0,0.00026376,4]
[366779711,1750445432472,-490.0,0.00026376,4]
[366779713,1750445432481,-490.0,0.00026376,4]
[366779715,1750445432491,-385.0001806,0.00026376,4]
[366779717,1750445432501,-490.0,0.00026376,4]
[366779719,1750445432510,-500.0,0.00026376,4]
[366779721,1750445432520,-490.0,0.00026376,4]
[366779723,1750445432529,-490.0,0.00026376,4]
[366779725,1750445432539,-490.0,0.00026376,4]
[366779727,1750445432548,-490.0,0.00026376,4]
[366779729,1750445432557,-490.0,0.00026376,4]
[366779731,1750445432568,-490.0,0.00026376,4]
[366779733,1750445432578,-490.0,0.00026376,4]
[366779735,1750445432589,-490.0,0.00026376,4]
[366779737,1750445432599,-490.0,0.00026376,4]
[366779739,1750445432609,-490.0,0.00026376,4]
[366779741,1750445432619,-490.0,0.00026376,4]
[366779743,1750445432629,-490.0,0.00026376,4]
[366779745,1750445432639,-490.0,0.00026376,4]
[366779747,1750445432649,-490.0,0.00026376,4]
[366779749,1750445432659,-490.0,0.00026376,4]
[366779751,1750445432669,-490.0,0.00026376,4]
[366779753,1750445432679,-490.0,0.00026376,4]
[366779755,1750445432688,-490.0,0.00026376,4]
[366779757,1750445432698,-490.0,0.00026376,4]
[366779759,1750445432708,-490.0,0.00026376,4]
[366779761,1750445432717,-490.0,0.00026376,4]
[366779763,1750445432727,-490.0,0.00026376,4]
[366779765,1750445432737,-490.0,0.00026376,4]
[366779767,1750445432746,-490.0,0.00026376,4]
[366779769,1750445432756,-490.0,0.00026376,4]
[366779771,1750445432765,-490.0,0.00026376,4]
[366779773,1750445432775,-490.0,0.00026376,4]
[366779775,1750445432784,-490.0,0.00026376,4]
[366779777,1750445432794,-490.0,0.00026376,4]
[366779779,1750445432804,-490.0,0.00026376,4]
[366779781,1750445432814,-284.65,0.00026376,4]
[366779783,1750445432823,-490.0,0.00026376,4]
[366779785,1750445432833,-490.0,0.00026376,4]
[366779787,1750445432842,-490.0,0.00026376,4]
[366779789,1750445432852,-490.0,0.00026376,4]
[366779791,1750445432861,-490.0,0.00026376,4]
[366779793,1750445432870,-490.0,0.00026376,4]
[366779795,1750445432879,-490.0,0.00026376,4]
[366779797,1750445432888,-490.0,0.00026376,4]
[366779799,1750445432898,-500.0,0.00026376,4]
[366779801,1750445432907,-490.0,0.00026376,4]
[366779802,1750445432916,-490.0,0.00026376,4]
[366779805,1750445432926,-490.0,0.00026376,4]
[366779807,1750445432936,-490.0,0.00026376,4]
[366779809,1750445432945,-490.0,0.00026376,4]
[366779811,1750445432955,-490.0,0.00026376,4]
[366779813,1750445432964,-580.0,0.00026376,4]
[366779815,1750445432974,-490.0,0.00026376,4]
[366779817,1750445432983,-490.0,0.00026376,4]
[366779819,1750445432993,-490.0,0.00026376,4]
[366779821,1750445433002,-490.0,0.00026376,4]
[366779823,1750445433012,-490.0,0.00026376,4]
[366779825,1750445433022,-490.0,0.00026376,4]
[366779827,1750445433031,-490.0,0.00026376,4]
[366779829,1750445433041,-490.0,0.00026376,4]
[366779831,1750445433050,-490.0,0.00026376,4]
[366779832,1750445433060,-490.0,0.00026376,4]
[366779835,1750445433070,-490.0,0.00026376,4]
[366779837,1750445433080,-490.0,0.00026376,4]
[366779839,1750445433090,-490.0,0.00026376,4]
[366779841,1750445433100,-490.0,0.00026376,4]
[366779843,1750445433111,-543.23,0.00026376,4]
[366779845,1750445433121,-490.0,0.00026376,4]
[366779847,1750445433132,-490.0,0.00026376,4]
[366779849,1750445433142,-490.0,0.00026376,4]
[366779851,1750445433152,-490.0,0.00026376,4]
[366779853,1750445433162,-490.0,0.00026376,4]
[366779855,1750445433172,-490.0,0.00026376,4]
[366779857,1750445433182,-490.0,0.00026376,4]
[366779859,1750445433192,-326.86390922,0.00026376,4]
[366779861,1750445433202,-490.0,0.00026376,4]
[366779863,1750445433214,-490.0,0.00026376,4]
[366779865,1750445433224,-490.0,0.00026376,4]
[366779867,1750445433233,-490.0,0.00026376,4]
[366779869,1750445433243,-490.0,0.00026376,4]
[366779871,1750445433253,-490.0,0.00026376,4]
[366779873,1750445433263,-490.0,0.00026376,4]
[366779875,1750445433272,-500.0,0.00026376,4]
[366779877,1750445433282,-490.0,0.00026376,4]
[366779879,1750445433292,-404.97173579,0.00026376,4]
[366779881,1750445433302,-490.0,0.00026376,4]
[366779883,1750445433311,-702.11,0.00026376,4]
[366779885,1750445433325,-490.0,0.00026376,4]
[366779887,1750445433335,-500.0,0.00026376,4]
[366779889,1750445433346,-490.0,0.00026376,4]
[366779891,1750445433356,-490.0,0.00026376,4]
[366779893,1750445433366,-490.0,0.00026376,4]
[366779895,1750445433376,-490.0,0.00026376,4]
[366779897,1750445433386,-157.72513269,0.00026376,4]
[366779899,1750445433397,-490.0,0.00026376,4]
[366779901,1750445433407,-490.0,0.00026376,4]
[366779903,1750445433417,-490.0,0.00026376,4]
[366779905,1750445433428,-490.0,0.00026376,4]
[366779907,1750445433438,-490.0,0.00026376,4]
[366779909,1750445433448,-428.60461569,0.00026376,4]
[366779911,1750445433459,-490.0,0.00026376,4]
[366779913,1750445433469,-79.95757129,0.00026376,4]
[366779917,1750445433492,-410.04242871,0.00026376,4]
[366779919,1750445433502,-189.95759224,0.00026376,4]
[366780028,1750445437831,-300.04240776,0.00026376,4]
[366780029,1750445437842,-490.0,0.00026376,4]
[366780030,1750445437852,-490.0,0.00026376,4]
[366780031,1750445437861,-490.0,0.00026376,4]
[366780032,1750445437871,-490.0,0.00026376,4]
[366780033,1750445437882,-490.0,0.00026376,4]
[366780034,1750445437891,-490.0,0.00026376,4]
[366780035,1750445437901,-490.0,0.00026376,4]
[366780036,1750445437912,-490.0,0.00026376,4]
[366780037,1750445437922,-490.0,0.00026376,4]
[366780038,1750445437932,-121.1462474,0.00026376,4]
[366780039,1750445438098,-368.8537526,0.00026376,4]
[366780040,1750445438108,-490.0,0.00026376,4]
[366780042,1750445438118,-155.39,0.00026376,4]
[366780043,1750445438127,-490.0,0.00026376,4]
[366780044,1750445438137,-490.0,0.00026376,4]
[366780045,1750445438147,-490.0,0.00026376,4]
[366780046,1750445438156,-490.0,0.00026376,4]
[366780047,1750445438166,-366.73863042,0.00026376,4]
[366780048,1750445438177,-123.26136958,0.00026376,4]
[366780049,1750445438187,-375.85668,0.00026376,4]
[366780050,1750445439876,-114.14332,0.00026376,4]
[366780051,1750445439889,-490.0,0.00026376,4]
[366780052,1750445439899,-30.15131262,0.00026376,4]
[366780053,1750445439930,-185.82561524,0.00026376,4]
[366780054,1750445439941,-490.0,0.00026376,4]
[366780055,1750445439952,-490.0,0.00026376,4]
[366780056,1750445439962,-490.0,0.00026376,4]
[366780057,1750445439972,-490.0,0.00026376,4]
[366780058,1750445439982,-490.0,0.00026376,4]
[366780059,1750445439992,-490.0,0.00026376,4]
[366780060,1750445440002,-490.0,0.00026376,4]
[366780061,1750445440012,-490.0,0.00026376,4]
[366780062,1750445440023,-490.0,0.00026376,4]
[366780063,1750445440034,-490.0,0.00026376,4]
[366780064,1750445440045,-490.0,0.00026376,4]
[366780065,1750445440055,-490.0,0.00026376,4]
[366780066,1750445440065,-490.0,0.00026376,4]
[366780067,1750445440075,-490.0,0.00026376,4]
[366780068,1750445440085,-490.0,0.00026376,4]
[366780069,1750445440095,-490.0,0.00026376,4]
[366780070,1750445440107,-508.59,0.00026376,4]
[366780071,1750445440117,-469.47937073,0.00026376,4]
[366780072,1750445440128,-490.0,0.00026376,4]
[366780073,1750445440141,-490.0,0.00026376,4]
[366780074,1750445440151,-494.49293981,0.00026376,4]
[366780075,1750445440166,-490.0,0.00026376,4]
[366780076,1750445440176,-546.31188091,0.00026376,4]
[366780077,1750445440186,-490.0,0.00026376,4]
[366780078,1750445440196,-490.0,0.00026376,4]
[366780079,1750445440206,-490.0,0.00026376,4]
[366780080,1750445440216,-490.0,0.00026376,4]
[366780081,1750445440226,-188.57502469,0.00026376,4]
[366780082,1750445440236,-490.0,0.00026376,4]
[366780083,1750445440246,-490.0,0.00026376,4]
[366780084,1750445440256,-497.1,0.00026376,4]
[366780085,1750445440266,-490.0,0.00026376,4]
[366780086,1750445440276,-95.62516862,0.00026376,4]
[366780087,1750445440317,-515.85483138,0.00026376,4]
[366780088,1750445440332,-1.71316862,0.00026376,4]
[366780089,1750445440344,-485.47,0.00026376,4]
[366780102,1750445443087,-2.81683138,0.00026376,4]
[366780103,1750445443099,-490.0,0.00026376,4]
[366780105,1750445443110,-228.16018577,0.00026376,4]
[366780106,1750445443193,-191.83981423,0.00026376,4]
[366780107,1750445443204,-460.0,0.00026377,4]
[366780109,1750445443214,-370.73233358,0.00026377,4]
[366780111,1750445443225,-155.56929573,0.00026433,2]
[366780113,1750445443234,-203.0,0.00026449,6]
[366780115,1750445443245,-434.97861,0.00026476,2]
[366780117,1750445443254,-155.059511,0.00026479,4]
[366780119,1750445443264,-155.059511,0.00026499,4]
[366780121,1750445443273,-5000.0,0.00026522,2]
[366780123,1750445443283,-640.526,0.00026522,3]
[366780125,1750445443294,-3453.03945188,0.00026531,2]
[366780126,1750445443304,-189.63631778,0.00026532,2]
[366780127,1750445443314,-263.21813068,0.00026533,2]
[366780128,1750445443327,-240.08496318,0.00026533,2]
[366780129,1750445443337,-500.0,0.00026535,2]
[366780130,1750445443349,-373.49339595,0.0002654,2]
[366780131,1750445443359,-155.56929571,0.00026577,2]
[366780132,1750445443370,-240.0,0.0002658,2]
[366780133,1750445443379,-6766.47379732,0.0002658,2]
[366780134,1750445443392,-649.18989135,0.0002658,2]
[366780143,1750445714192,171.13,0.00022081,2]
[366780146,1750445730896,160.87,0.00013699,2]
[366780180,1750446252516,8219.58987264,0.00022,15]
[366780185,1750446327806,1000.0,0.00023102,2]
[366780193,1750446344531,1000.0,0.00023102,2]
[366780195,1750446354777,1000.0,0.00023102,2]
[366780197,1750446363763,1000.0,0.00023102,2]
[366780200,1750446372923,1000.0,0.00023102,2]
[366780203,1750446380690,1000.0,0.00023102,2]
[366780204,1750446488631,258.0018094,0.00023102,2]
[366780211,1750446632042,-942.58802425,0.00024808,2]
[366780212,1750446632094,-132.54836925,0.00024808,2]
[366780213,1750446632104,-250.0,0.00024821,2]
[366780214,1750446632114,-203.0,0.00024908,2]
[366780215,1750446632124,-201.0,0.00024908,2]
[366780216,1750446632134,-1000.0,0.00025217,2]
[366780217,1750446632144,-428.73,0.00025382,2]
[366780218,1750446632154,-320.16,0.00025437,2]
[366780219,1750446632164,-600.0,0.00025445,2]
[366780220,1750446632173,-281.4466101,0.00025445,2]
[366780221,1750446632185,-438.5533899,0.00025445,2]
[366780222,1750446632195,-864.0,0.00025445,2]
[366780223,1750446632205,-456.0,0.00025445,2]
[366780224,1750446632214,-300.0,0.00025448,2]
[366780225,1750446632224,-300.0,0.00025448,2]
[366780226,1750446632234,-94.46280731,0.00025448,2]
[366780227,1750446632269,-1105.53719269,0.00025448,2]
[366780228,1750446632279,-300.0,0.00025448,2]
[366780229,1750446632288,-2006.69756861,0.00025449,2]
[366780230,1750446632301,-350.96527722,0.00025449,2]
[366780750,1750446637942,-9372.08715417,0.00025449,2]
[366780752,1750446637953,-207.4,0.00025531,2]
[366780754,1750446637963,-937.51284583,0.00025531,2]
[366780762,1750446638046,-1020.34315417,0.00025531,2]
[366780764,1750446638057,-8057.82582464,0.00025546,2]
[366780766,1750446638069,-1967.41000002,0.00025546,2]
[366780768,1750446638082,-1620.877762,0.00025546,2]
[366780770,1750446638093,-2290.16,0.00025546,2]
[366780772,1750446638106,-476.03,0.00025546,2]
[366780775,1750446638119,-1662.4,0.00025546,2]
[366780777,1750446638131,-7825.29641334,0.00025546,2]
[366780779,1750446638142,-368.32608666,0.00025566,120]
[366780782,1750446638166,-173.62391334,0.00025566,120]
[366780784,1750446638176,-2030.296672,0.00025586,2]
[366780786,1750446638186,-136.07941466,0.00025593,2]
[366780790,1750446638219,-281.78311804,0.00025593,2]
[366780792,1750446638232,-248.1374673,0.00025593,2]
[366780794,1750446638243,-275.0125327,0.000256,2]
[366780798,1750446638280,-1318.3974673,0.000256,2]
[366780800,1750446638290,-300.0,0.00025631,120]
[366780802,1750446638300,-231.7625327,0.00025641,2]
[366780965,1750446640038,-597.37386449,0.00025641,2]
[366780971,1750446640089,-802.50302017,0.00025641,2]
[366780973,1750446640102,-473.7782315,0.00025641,2]
[366780975,1750446640113,-103.2117685,0.00025644,2]
[366780977,1750446640126,-83.4982315,0.00025644,2]
[366780980,1750446640136,-2183.31810187,0.00025696,2]
[366780981,1750446640147,-130.28989413,0.00025751,2]
[366780985,1750446640168,-914.34573991,0.00025751,2]
[366780987,1750446640178,-691.11893913,0.00025835,2]
[366780989,1750446640189,-1672.00956831,0.000259,14]
[366780991,1750446640198,-600.0,0.00025972,4]
[366780993,1750446640208,-232.54496953,0.00026,2]
[366781003,1750446640304,-32003.85564883,0.00026,2]
[366781271,1750446643066,-29582.95799384,0.00026,2]
[366781283,1750446643172,-4908.2,0.00026,2]
[366781290,1750446643226,-1014.17019827,0.00026,2]
[366781292,1750446643238,-240298.0951497,0.00026,2]
[366781293,1750446643250,-14460.660835,0.00026,2]
[366781296,1750446643384,-23445.23008265,0.00026,2]
[366781301,1750446643438,-6015.53178867,0.00026,2]
[366781325,1750446646092,-936.58782271,0.00026,2]
[366781326,1750446646104,-109858.4757908,0.00026,2]
[366781327,1750446646115,-22661.33807938,0.00026,2]
[366781329,1750446646362,-121742.40619175,0.00026,2]
[366781330,1750446646372,-9007.74796612,0.00026,4]
[366781331,1750446646383,-733.306011,0.00026117,8]
[366781332,1750446646392,-354.83,0.00026158,2]
[366781333,1750446646402,-362.48217,0.0002623,2]
[366781334,1750446646412,-166.27,0.0002629,2]
[366781335,1750446646422,-2000.0,0.000263,2]
[366781336,1750446646431,-1672.00956807,0.00026348,14]
[366781337,1750446646441,-437.5533,0.00026422,2]
[366781338,1750446646451,-320.13719652,0.00026422,2]
[366781339,1750446646460,-4053.26301236,0.00026422,2]
[366781341,1750446646478,-216.07646688,0.00026422,2]
[366781342,1750446646498,-3525.87422883,0.00026422,2]
[366781343,1750446646513,-203.0,0.00026434,4]
[366781344,1750446646528,-210.57450456,0.0002647,2]
[366781345,1750446646541,-13589.16585172,0.0002648,2]
[366781346,1750446646556,-155.56929571,0.00026494,2]
[366781347,1750446646569,-500.0,0.00026497,2]
[366781348,1750446646583,-500.0,0.00026497,2]
[366781349,1750446646598,-350.38172679,0.00026497,2]
[366781350,1750446646613,-500.0,0.00026497,2]
[366781351,1750446646628,-500.0,0.00026497,2]
[366781352,1750446646641,-500.0,0.00026497,2]
[366781353,1750446646652,-347.5324118,0.00026497,2]
[366781354,1750446646669,-500.0,0.00026497,2]
[366781355,1750446646684,-500.0,0.00026497,2]
[366781356,1750446646699,-500.0,0.00026497,2]
[366781357,1750446646713,-500.0,0.00026497,2]
[366781358,1750446646728,-500.0,0.00026497,2]
[366781359,1750446646742,-500.0,0.00026497,2]
[366781360,1750446646756,-500.0,0.00026497,2]
[366781361,1750446646769,-500.0,0.00026497,2]
[366781362,1750446646783,-500.0,0.00026497,2]
[366781363,1750446646797,-245.04415365,0.00026497,2]
[366781364,1750446646808,-294.74766466,0.00026497,2]
[366781365,1750446646821,-500.0,0.00026497,2]
[366781366,1750446646836,-309.39535432,0.00026497,2]
[366781367,1750446646849,-500.0,0.00026497,2]
[366781368,1750446646862,-276.09859537,0.00026497,2]
[366781369,1750446646883,-223.90140463,0.00026497,2]